[Event "Titled Tuesday Blitz August 1 Late 2023"]
[White "Fuzesabonyilaci"]
[Black "Chor, Kevin"]
[BlackFideId "2090740"]
[WhiteElo "2323"]
[BlackElo "2526"]
[Result "1-0"]
[Round "3"]
[TimeControl "180+1"]
[Date "2023.08.01"]
[WhiteClock "0:00:13"]
[BlackClock "0:00:01"]
[Board "115"]

1. d4 {[%clk 0:03:00]}  Nf6 {[%clk 0:02:59]} 2. Nc3 {[%clk 0:02:59]}  d5 {[%clk 0:02:59]} 3. Bf4 {[%clk 0:02:54]}  c6 {[%clk 0:02:47]} 4. Qd2 {[%clk 0:02:45]}  Bf5 {[%clk 0:02:31]} 5. f3 {[%clk 0:02:36]}  e6 {[%clk 0:02:28]} 6. e3 {[%clk 0:02:12]}  Bb4 {[%clk 0:02:19]} 7. Nge2 {[%clk 0:02:13]}  Nbd7 {[%clk 0:02:16]} 8. a3 {[%clk 0:02:13]}  Ba5 {[%clk 0:02:14]} 9. g4 {[%clk 0:01:58]}  Bg6 {[%clk 0:02:14]} 10. h4 {[%clk 0:01:59]}  h6 {[%clk 0:02:08]} 11. h5 {[%clk 0:01:52]}  Bh7 {[%clk 0:02:06]} 12. O-O-O {[%clk 0:01:41]}  Nb6 {[%clk 0:01:48]} 13. Ng3 {[%clk 0:01:40]}  Na4 {[%clk 0:01:33]} 14. b4 {[%clk 0:01:39]}  Nxc3 {[%clk 0:01:33]} 15. Qxc3 {[%clk 0:01:40]}  Bc7 {[%clk 0:01:33]} 16. Ne2 {[%clk 0:01:22]}  Nd7 {[%clk 0:01:24]} 17. Rg1 {[%clk 0:01:12]}  f6 {[%clk 0:01:09]} 18. Bxc7 {[%clk 0:01:07]}  Qxc7 {[%clk 0:01:09]} 19. Nf4 {[%clk 0:01:08]}  Qd6 {[%clk 0:00:48]} 20. Bd3 {[%clk 0:01:07]}  Bxd3 {[%clk 0:00:45]} 21. Qxd3 {[%clk 0:01:05]}  O-O-O {[%clk 0:00:45]} 22. c4 {[%clk 0:01:03]}  Kb8 {[%clk 0:00:42]} 23. c5 {[%clk 0:01:02]}  Qe7 {[%clk 0:00:33]} 24. Ng6 {[%clk 0:01:02]}  Qf7 {[%clk 0:00:34]} 25. Nxh8 {[%clk 0:01:01]}  Rxh8 {[%clk 0:00:34]} 26. e4 {[%clk 0:00:57]}  Rd8 {[%clk 0:00:34]} 27. exd5 {[%clk 0:00:57]}  cxd5 {[%clk 0:00:33]} 28. f4 {[%clk 0:00:47]}  e5 {[%clk 0:00:27]} 29. fxe5 {[%clk 0:00:47]}  fxe5 {[%clk 0:00:28]} 30. Qf5 {[%clk 0:00:45]}  Qe7 {[%clk 0:00:18]} 31. dxe5 {[%clk 0:00:41]}  Rf8 {[%clk 0:00:16]} 32. Qd3 {[%clk 0:00:31]}  Qxe5 {[%clk 0:00:16]} 33. Qd4 {[%clk 0:00:30]}  Qg5+ {[%clk 0:00:14]} 34. Kb1 {[%clk 0:00:29]}  Nf6 {[%clk 0:00:13]} 35. Rdf1 {[%clk 0:00:20]}  Re8 {[%clk 0:00:12]} 36. Qf4+ {[%clk 0:00:20]}  Qxf4 {[%clk 0:00:12]} 37. Rxf4 {[%clk 0:00:21]}  Re3 {[%clk 0:00:09]} 38. Kb2 {[%clk 0:00:21]}  Kc7 {[%clk 0:00:09]} 39. g5 {[%clk 0:00:22]}  Nxh5 {[%clk 0:00:08]} 40. Rf7+ {[%clk 0:00:21]}  Kc6 {[%clk 0:00:09]} 41. gxh6 {[%clk 0:00:21]}  gxh6 {[%clk 0:00:09]} 42. Rh7 {[%clk 0:00:21]}  Kb5 {[%clk 0:00:09]} 43. Rxb7+ {[%clk 0:00:19]}  Kc4 {[%clk 0:00:09]} 44. c6 {[%clk 0:00:19]}  Nf4 {[%clk 0:00:07]} 45. c7 {[%clk 0:00:19]}  Re2+ {[%clk 0:00:06]} 46. Kb1 {[%clk 0:00:19]}  Kb3 {[%clk 0:00:03]} 47. Rg3+ {[%clk 0:00:14]}  Ka4 {[%clk 0:00:02]} 48. c8=Q {[%clk 0:00:15]}  Re1+ {[%clk 0:00:02]} 49. Qc1 {[%clk 0:00:14]}  Rd1 {[%clk 0:00:01]} 50. Qxd1# {[%clk 0:00:13]} 1-0


[Site "https://www.chess.com"]

[Event "Titled Tuesday Blitz August 1 Late 2023"]
[White "Petesch, Gabriel"]
[Black "Garmendiarov"]
[WhiteFideId "2032465"]
[WhiteElo "2515"]
[BlackElo "2282"]
[Result "1-0"]
[Round "3"]
[TimeControl "180+1"]
[Date "2023.08.01"]
[WhiteClock "0:00:15"]
[BlackClock "0:00:05"]
[Board "121"]

1. d4 {[%clk 0:02:49]}  Nf6 {[%clk 0:02:59]} 2. Nf3 {[%clk 0:02:48]}  g6 {[%clk 0:02:59]} 3. Bf4 {[%clk 0:02:48]}  Bg7 {[%clk 0:03:00]} 4. e3 {[%clk 0:02:48]}  O-O {[%clk 0:03:00]} 5. Nbd2 {[%clk 0:02:48]}  d6 {[%clk 0:03:01]} 6. Be2 {[%clk 0:02:22]}  Nh5 {[%clk 0:02:59]} 7. Bg5 {[%clk 0:02:21]}  h6 {[%clk 0:02:59]} 8. Bh4 {[%clk 0:02:21]}  g5 {[%clk 0:03:00]} 9. Bg3 {[%clk 0:02:22]}  Nc6 {[%clk 0:02:47]} 10. c3 {[%clk 0:02:19]}  e5 {[%clk 0:02:44]} 11. Nxe5 {[%clk 0:02:04]}  dxe5 {[%clk 0:02:11]} 12. Bxh5 {[%clk 0:02:01]}  f5 {[%clk 0:01:53]} 13. Bxe5 {[%clk 0:01:06]}  Nxe5 {[%clk 0:01:44]} 14. dxe5 {[%clk 0:01:04]}  Bxe5 {[%clk 0:01:45]} 15. Qb3+ {[%clk 0:01:00]}  Kh8 {[%clk 0:01:37]} 16. O-O-O {[%clk 0:00:58]}  Qe7 {[%clk 0:01:34]} 17. Kb1 {[%clk 0:00:45]}  Be6 {[%clk 0:01:27]} 18. Qc2 {[%clk 0:00:45]}  f4 {[%clk 0:00:57]} 19. Bf3 {[%clk 0:00:38]}  fxe3 {[%clk 0:00:54]} 20. fxe3 {[%clk 0:00:38]}  Rad8 {[%clk 0:00:37]} 21. h3 {[%clk 0:00:32]}  b5 {[%clk 0:00:28]} 22. Nb3 {[%clk 0:00:32]}  c5 {[%clk 0:00:22]} 23. Rxd8 {[%clk 0:00:31]}  Rxd8 {[%clk 0:00:23]} 24. Rd1 {[%clk 0:00:31]}  Rxd1+ {[%clk 0:00:21]} 25. Qxd1 {[%clk 0:00:32]}  Bf5+ {[%clk 0:00:18]} 26. e4 {[%clk 0:00:30]}  Bg6 {[%clk 0:00:18]} 27. Qd5 {[%clk 0:00:29]}  c4 {[%clk 0:00:16]} 28. Nd4 {[%clk 0:00:29]}  a6 {[%clk 0:00:13]} 29. a3 {[%clk 0:00:21]}  Bh7 {[%clk 0:00:09]} 30. Nc6 {[%clk 0:00:20]}  Qf6 {[%clk 0:00:04]} 31. Nxe5 {[%clk 0:00:20]}  Qf4 {[%clk 0:00:03]} 32. Kc2 {[%clk 0:00:19]}  Qe3 {[%clk 0:00:03]} 33. Ng4 {[%clk 0:00:18]}  Qe1 {[%clk 0:00:03]} 34. Qd4+ {[%clk 0:00:18]}  Kg8 {[%clk 0:00:03]} 35. Nf6+ {[%clk 0:00:18]}  Kg7 {[%clk 0:00:03]} 36. Nxh7+ {[%clk 0:00:16]}  Kxh7 {[%clk 0:00:04]} 37. e5 {[%clk 0:00:16]}  Kg6 {[%clk 0:00:03]} 38. Be4+ {[%clk 0:00:16]}  Kf7 {[%clk 0:00:03]} 39. Qd7+ {[%clk 0:00:16]}  Kf8 {[%clk 0:00:04]} 40. Qd6+ {[%clk 0:00:16]}  Kg7 {[%clk 0:00:03]} 41. Qf6+ {[%clk 0:00:14]}  Kg8 {[%clk 0:00:04]} 42. Bd5+ {[%clk 0:00:14]}  Kh7 {[%clk 0:00:04]} 43. Qf7+ {[%clk 0:00:14]}  Kh8 {[%clk 0:00:05]} 44. Qg8# {[%clk 0:00:15]} 1-0


[Site "https://www.chess.com"]

[Event "Titled Tuesday Blitz August 1 Late 2023"]
[White "Kanakaris, Georgios"]
[Black "Vafin, Ayrat"]
[WhiteFideId "4209460"]
[BlackFideId "4146530"]
[WhiteElo "2514"]
[BlackElo "2280"]
[Result "1-0"]
[Round "3"]
[TimeControl "180+1"]
[Date "2023.08.01"]
[WhiteClock "0:00:07"]
[BlackClock "0:00:12"]
[Board "123"]

1. d4 {[%clk 0:03:00]}  d5 {[%clk 0:03:00]} 2. c4 {[%clk 0:03:00]}  e6 {[%clk 0:03:00]} 3. Nf3 {[%clk 0:03:00]}  Nf6 {[%clk 0:03:00]} 4. e3 {[%clk 0:03:01]}  Be7 {[%clk 0:03:00]} 5. Nbd2 {[%clk 0:03:01]}  b6 {[%clk 0:02:59]} 6. Bd3 {[%clk 0:03:01]}  Bb7 {[%clk 0:02:59]} 7. b3 {[%clk 0:03:01]}  O-O {[%clk 0:02:58]} 8. Bb2 {[%clk 0:03:02]}  Bd6 {[%clk 0:02:54]} 9. O-O {[%clk 0:03:01]}  Nbd7 {[%clk 0:02:55]} 10. Qe2 {[%clk 0:02:57]}  c5 {[%clk 0:02:48]} 11. Rac1 {[%clk 0:02:53]}  Qe7 {[%clk 0:02:46]} 12. Rfd1 {[%clk 0:02:52]}  Rac8 {[%clk 0:02:37]} 13. cxd5 {[%clk 0:02:49]}  exd5 {[%clk 0:02:32]} 14. Ba6 {[%clk 0:02:49]}  Bxa6 {[%clk 0:02:27]} 15. Qxa6 {[%clk 0:02:50]}  Nb8 {[%clk 0:02:25]} 16. Qd3 {[%clk 0:02:44]}  Rfd8 {[%clk 0:02:14]} 17. Qf5 {[%clk 0:02:28]}  Qe6 {[%clk 0:02:00]} 18. Nh4 {[%clk 0:02:10]}  Nc6 {[%clk 0:01:13]} 19. dxc5 {[%clk 0:02:05]}  bxc5 {[%clk 0:01:11]} 20. Bxf6 {[%clk 0:02:04]}  Qxf6 {[%clk 0:01:12]} 21. Qxf6 {[%clk 0:02:03]}  gxf6 {[%clk 0:01:13]} 22. Nf5 {[%clk 0:01:59]}  Bf8 {[%clk 0:01:13]} 23. Nb1 {[%clk 0:01:51]}  d4 {[%clk 0:01:09]} 24. Na3 {[%clk 0:01:30]}  dxe3 {[%clk 0:01:02]} 25. fxe3 {[%clk 0:01:28]}  Nb4 {[%clk 0:01:02]} 26. Nc4 {[%clk 0:01:11]}  Nxa2 {[%clk 0:00:58]} 27. Rxd8 {[%clk 0:01:09]}  Rxd8 {[%clk 0:00:57]} 28. Ra1 {[%clk 0:01:09]}  Nc3 {[%clk 0:00:47]} 29. Rxa7 {[%clk 0:01:09]}  Ne4 {[%clk 0:00:48]} 30. Ra1 {[%clk 0:00:50]}  h5 {[%clk 0:00:40]} 31. g3 {[%clk 0:00:47]}  Kh7 {[%clk 0:00:37]} 32. Kg2 {[%clk 0:00:46]}  Bh6 {[%clk 0:00:35]} 33. Ra7 {[%clk 0:00:39]}  Kg6 {[%clk 0:00:26]} 34. Nxh6 {[%clk 0:00:26]}  Kxh6 {[%clk 0:00:26]} 35. Rxf7 {[%clk 0:00:27]}  Rd3 {[%clk 0:00:27]} 36. Re7 {[%clk 0:00:21]}  Nc3 {[%clk 0:00:15]} 37. Re6 {[%clk 0:00:20]}  Kg7 {[%clk 0:00:15]} 38. Rd6 {[%clk 0:00:16]}  Nd5 {[%clk 0:00:13]} 39. Kf3 {[%clk 0:00:14]}  Nb4 {[%clk 0:00:12]} 40. Rxd3 {[%clk 0:00:13]}  Nxd3 {[%clk 0:00:13]} 41. Ke4 {[%clk 0:00:10]}  Nc1 {[%clk 0:00:13]} 42. Nd2 {[%clk 0:00:10]}  Kg6 {[%clk 0:00:11]} 43. Kd5 {[%clk 0:00:10]}  Nd3 {[%clk 0:00:11]} 44. Kc4 {[%clk 0:00:09]}  Ne5+ {[%clk 0:00:11]} 45. Kxc5 {[%clk 0:00:10]}  Nd7+ {[%clk 0:00:12]} 46. Kd6 {[%clk 0:00:10]}  Nb6 {[%clk 0:00:12]} 47. b4 {[%clk 0:00:10]}  h4 {[%clk 0:00:12]} 48. gxh4 {[%clk 0:00:08]}  Kh5 {[%clk 0:00:13]} 49. Nf3 {[%clk 0:00:08]}  Kg4 {[%clk 0:00:13]} 50. b5 {[%clk 0:00:08]}  Kxf3 {[%clk 0:00:12]} 51. h5 {[%clk 0:00:08]}  Nc4+ {[%clk 0:00:13]} 52. Kc7 {[%clk 0:00:07]}  Nxe3 {[%clk 0:00:12]} 53. h6 {[%clk 0:00:07]}  Nd5+ {[%clk 0:00:13]} 54. Kd6 {[%clk 0:00:07]}  Ne3 {[%clk 0:00:10]} 55. h7 {[%clk 0:00:07]}  Nf5+ {[%clk 0:00:11]} 56. Kc5 {[%clk 0:00:05]}  Ng7 {[%clk 0:00:10]} 57. h8=Q {[%clk 0:00:06]}  Ne6+ {[%clk 0:00:11]} 58. Kd6 {[%clk 0:00:05]}  Ng5 {[%clk 0:00:12]} 59. Qxf6+ {[%clk 0:00:06]}  Kg4 {[%clk 0:00:12]} 60. Qxg5+ {[%clk 0:00:06]}  Kxg5 {[%clk 0:00:12]} 61. b6 {[%clk 0:00:07]} 1-0


[Site "https://www.chess.com"]

[Event "Titled Tuesday Blitz August 1 Late 2023"]
[White "Prado Lobo, Jonas"]
[Black "Andreassen, Lars"]
[WhiteFideId "32050666"]
[BlackFideId "1504878"]
[WhiteElo "2511"]
[BlackElo "2275"]
[Result "1-0"]
[Round "3"]
[TimeControl "180+1"]
[Date "2023.08.01"]
[WhiteClock "0:00:43"]
[BlackClock "0:00:00"]
[Board "125"]

1. c4 {[%clk 0:03:00]}  e6 {[%clk 0:02:58]} 2. Nc3 {[%clk 0:02:59]}  d5 {[%clk 0:02:58]} 3. d4 {[%clk 0:02:59]}  c5 {[%clk 0:02:57]} 4. cxd5 {[%clk 0:02:56]}  cxd4 {[%clk 0:02:57]} 5. Qxd4 {[%clk 0:02:54]}  Nc6 {[%clk 0:02:56]} 6. Qd1 {[%clk 0:02:51]}  exd5 {[%clk 0:02:56]} 7. Qxd5 {[%clk 0:02:52]}  Bd7 {[%clk 0:02:55]} 8. Nf3 {[%clk 0:02:47]}  Nf6 {[%clk 0:02:55]} 9. Qd1 {[%clk 0:02:47]}  Bc5 {[%clk 0:02:55]} 10. e3 {[%clk 0:02:47]}  Qe7 {[%clk 0:02:50]} 11. Be2 {[%clk 0:02:46]}  g5 {[%clk 0:02:49]} 12. O-O {[%clk 0:02:43]}  Rg8 {[%clk 0:02:49]} 13. b4 {[%clk 0:02:38]}  Bxb4 {[%clk 0:02:49]} 14. Bb2 {[%clk 0:02:37]}  O-O-O {[%clk 0:02:47]} 15. Qb3 {[%clk 0:02:28]}  Be6 {[%clk 0:02:45]} 16. Bc4 {[%clk 0:02:23]}  g4 {[%clk 0:02:41]} 17. Nd4 {[%clk 0:02:16]}  Nxd4 {[%clk 0:02:26]} 18. exd4 {[%clk 0:02:16]}  Rxd4 {[%clk 0:02:18]} 19. Bxe6+ {[%clk 0:02:13]}  Qxe6 {[%clk 0:02:18]} 20. Nb5 {[%clk 0:02:10]}  Qxb3 {[%clk 0:02:08]} 21. axb3 {[%clk 0:02:11]}  Rf4 {[%clk 0:02:01]} 22. Rfc1+ {[%clk 0:02:06]}  Kd7 {[%clk 0:01:49]} 23. Rxa7 {[%clk 0:02:01]}  Nd5 {[%clk 0:01:29]} 24. Rxb7+ {[%clk 0:02:00]}  Ke6 {[%clk 0:01:29]} 25. Nd4+ {[%clk 0:01:59]}  Rxd4 {[%clk 0:01:14]} 26. Bxd4 {[%clk 0:02:00]}  Nf4 {[%clk 0:01:07]} 27. Kf1 {[%clk 0:01:46]}  Ba3 {[%clk 0:01:00]} 28. Ra1 {[%clk 0:01:40]}  Bd6 {[%clk 0:00:58]} 29. Rb6 {[%clk 0:01:30]}  Rc8 {[%clk 0:00:53]} 30. b4 {[%clk 0:01:17]}  Nd5 {[%clk 0:00:47]} 31. Rba6 {[%clk 0:01:10]}  Nxb4 {[%clk 0:00:44]} 32. R6a4 {[%clk 0:00:48]}  Nc2 {[%clk 0:00:39]} 33. Rd1 {[%clk 0:00:47]}  Bxh2 {[%clk 0:00:30]} 34. g3 {[%clk 0:00:43]}  Rd8 {[%clk 0:00:00]} 35. Kg2 {[%clk 0:00:43]} 1-0


[Site "https://www.chess.com"]

[Event "Titled Tuesday Blitz August 1 Late 2023"]
[White "BrandonJiang123456"]
[Black "FromTexas54"]
[WhiteElo "2258"]
[BlackElo "2509"]
[Result "0-1"]
[Round "3"]
[TimeControl "180+1"]
[Date "2023.08.01"]
[WhiteClock "0:00:08"]
[BlackClock "0:02:03"]
[Board "127"]

1. e4 {[%clk 0:02:58]}  g6 {[%clk 0:02:59]} 2. d4 {[%clk 0:02:56]}  Bg7 {[%clk 0:02:59]} 3. Nc3 {[%clk 0:02:56]}  d6 {[%clk 0:02:59]} 4. Be3 {[%clk 0:02:55]}  a6 {[%clk 0:03:00]} 5. Qd2 {[%clk 0:02:55]}  b5 {[%clk 0:03:00]} 6. a3 {[%clk 0:02:55]}  Bb7 {[%clk 0:03:00]} 7. f3 {[%clk 0:02:54]}  Nd7 {[%clk 0:03:00]} 8. h4 {[%clk 0:02:51]}  h6 {[%clk 0:03:00]} 9. h5 {[%clk 0:02:51]}  g5 {[%clk 0:03:00]} 10. Nge2 {[%clk 0:02:48]}  Ngf6 {[%clk 0:03:00]} 11. Ng3 {[%clk 0:02:47]}  e6 {[%clk 0:02:59]} 12. Be2 {[%clk 0:02:40]}  Nb6 {[%clk 0:02:59]} 13. f4 {[%clk 0:02:32]}  gxf4 {[%clk 0:02:58]} 14. Bxf4 {[%clk 0:02:33]}  Nfd7 {[%clk 0:02:57]} 15. O-O-O {[%clk 0:02:20]}  Qe7 {[%clk 0:02:57]} 16. Rde1 {[%clk 0:02:05]}  O-O-O {[%clk 0:02:56]} 17. Kb1 {[%clk 0:01:52]}  Kb8 {[%clk 0:02:56]} 18. Na2 {[%clk 0:01:25]}  Ka8 {[%clk 0:02:55]} 19. Nb4 {[%clk 0:01:25]}  c5 {[%clk 0:02:55]} 20. dxc5 {[%clk 0:01:24]}  dxc5 {[%clk 0:02:56]} 21. Bd6 {[%clk 0:01:22]}  Qf6 {[%clk 0:02:49]} 22. Nd3 {[%clk 0:01:03]}  Nc4 {[%clk 0:02:47]} 23. Qf4 {[%clk 0:00:58]}  Nxd6 {[%clk 0:02:46]} 24. Qxd6 {[%clk 0:00:52]}  Nb8 {[%clk 0:02:38]} 25. Qf4 {[%clk 0:00:38]}  Qd4 {[%clk 0:02:28]} 26. c3 {[%clk 0:00:28]}  Qa4 {[%clk 0:02:28]} 27. Qxf7 {[%clk 0:00:24]}  Bxc3 {[%clk 0:02:12]} 28. bxc3 {[%clk 0:00:18]}  Qb3+ {[%clk 0:02:12]} 29. Ka1 {[%clk 0:00:10]}  Qxa3+ {[%clk 0:02:12]} 30. Kb1 {[%clk 0:00:11]}  Qb3+ {[%clk 0:02:12]} 31. Ka1 {[%clk 0:00:11]}  Qxc3+ {[%clk 0:02:12]} 32. Kb1 {[%clk 0:00:11]}  Qb3+ {[%clk 0:02:11]} 33. Ka1 {[%clk 0:00:11]}  Rd4 {[%clk 0:02:10]} 34. Nb2 {[%clk 0:00:09]}  Rd2 {[%clk 0:02:03]} 35. Rb1 {[%clk 0:00:08]}  Qa3# {[%clk 0:02:03]} 0-1


[Site "https://www.chess.com"]

[Event "Titled Tuesday Blitz August 1 Late 2023"]
[White "Papayan, Oleg"]
[Black "Francisco_Ferrari"]
[WhiteFideId "4193911"]
[WhiteElo "2505"]
[BlackElo "2231"]
[Result "1-0"]
[Round "3"]
[TimeControl "180+1"]
[Date "2023.08.01"]
[WhiteClock "0:02:15"]
[BlackClock "0:00:26"]
[Board "129"]

1. e4 {[%clk 0:03:00]}  c5 {[%clk 0:02:57]} 2. d4 {[%clk 0:03:01]}  cxd4 {[%clk 0:02:51]} 3. Qxd4 {[%clk 0:03:01]}  Nc6 {[%clk 0:02:50]} 4. Qd3 {[%clk 0:03:02]}  Nf6 {[%clk 0:02:49]} 5. Nc3 {[%clk 0:03:02]}  d6 {[%clk 0:02:47]} 6. Nf3 {[%clk 0:03:03]}  g6 {[%clk 0:02:47]} 7. Be2 {[%clk 0:03:03]}  Bg7 {[%clk 0:02:47]} 8. O-O {[%clk 0:03:04]}  O-O {[%clk 0:02:48]} 9. Nd5 {[%clk 0:03:05]}  Nd7 {[%clk 0:02:47]} 10. c3 {[%clk 0:03:05]}  a6 {[%clk 0:02:45]} 11. Bg5 {[%clk 0:03:03]}  b5 {[%clk 0:02:34]} 12. a4 {[%clk 0:03:02]}  Nc5 {[%clk 0:02:24]} 13. Qc2 {[%clk 0:02:59]}  bxa4 {[%clk 0:02:16]} 14. Rfd1 {[%clk 0:02:51]}  Rb8 {[%clk 0:02:01]} 15. Nd4 {[%clk 0:02:40]}  Nxd4 {[%clk 0:01:10]} 16. cxd4 {[%clk 0:02:41]}  Nb3 {[%clk 0:01:10]} 17. Nxe7+ {[%clk 0:02:37]}  Kh8 {[%clk 0:01:08]} 18. Nxg6+ {[%clk 0:02:37]}  hxg6 {[%clk 0:01:04]} 19. Bxd8 {[%clk 0:02:37]}  Rxd8 {[%clk 0:01:04]} 20. Rxa4 {[%clk 0:02:35]}  Be6 {[%clk 0:00:57]} 21. d5 {[%clk 0:02:23]}  Rdc8 {[%clk 0:00:53]} 22. Rc4 {[%clk 0:02:14]}  Rxc4 {[%clk 0:00:26]} 23. Bxc4 {[%clk 0:02:15]} 1-0


[Site "https://www.chess.com"]

[Event "Titled Tuesday Blitz August 1 Late 2023"]
[White "ilya2700"]
[Black "Bettalli, Francesco"]
[BlackFideId "2816453"]
[WhiteElo "2096"]
[BlackElo "2501"]
[Result "0-1"]
[Round "3"]
[TimeControl "180+1"]
[Date "2023.08.01"]
[WhiteClock "0:01:00"]
[BlackClock "0:02:40"]
[Board "131"]

1. e4 {[%clk 0:03:00]}  e5 {[%clk 0:02:59]} 2. Nf3 {[%clk 0:02:59]}  Nf6 {[%clk 0:02:59]} 3. Nc3 {[%clk 0:02:59]}  Bc5 {[%clk 0:02:59]} 4. Bc4 {[%clk 0:02:55]}  d6 {[%clk 0:02:58]} 5. d3 {[%clk 0:02:54]}  h6 {[%clk 0:02:57]} 6. Na4 {[%clk 0:02:50]}  Bb4+ {[%clk 0:02:57]} 7. c3 {[%clk 0:02:50]}  Ba5 {[%clk 0:02:57]} 8. b4 {[%clk 0:02:50]}  Bb6 {[%clk 0:02:57]} 9. Nxb6 {[%clk 0:02:49]}  axb6 {[%clk 0:02:58]} 10. h3 {[%clk 0:02:45]}  c6 {[%clk 0:02:58]} 11. Be3 {[%clk 0:02:31]}  O-O {[%clk 0:02:58]} 12. g4 {[%clk 0:02:15]}  d5 {[%clk 0:02:52]} 13. exd5 {[%clk 0:01:58]}  Nxd5 {[%clk 0:02:53]} 14. g5 {[%clk 0:01:41]}  h5 {[%clk 0:02:41]} 15. Nxe5 {[%clk 0:01:12]}  Nxe3 {[%clk 0:02:40]} 16. f3 {[%clk 0:01:00]}  Nxd1 {[%clk 0:02:40]} 0-1


[Site "https://www.chess.com"]

[Event "Titled Tuesday Blitz August 1 Late 2023"]
[White "Burke, Paul"]
[Black "Kanyamarala, Tarun"]
[WhiteFideId "2605767"]
[BlackFideId "45004714"]
[WhiteElo "1889"]
[BlackElo "2500"]
[Result "0-1"]
[Round "3"]
[TimeControl "180+1"]
[Date "2023.08.01"]
[WhiteClock "0:00:00"]
[BlackClock "0:00:28"]
[Board "132"]

1. e4 {[%clk 0:03:00]}  c5 {[%clk 0:02:58]} 2. d4 {[%clk 0:02:59]}  cxd4 {[%clk 0:02:58]} 3. c3 {[%clk 0:02:59]}  dxc3 {[%clk 0:02:57]} 4. Nxc3 {[%clk 0:02:59]}  Nc6 {[%clk 0:02:55]} 5. Nf3 {[%clk 0:02:59]}  d6 {[%clk 0:02:50]} 6. Bc4 {[%clk 0:02:58]}  Nf6 {[%clk 0:02:48]} 7. e5 {[%clk 0:02:58]}  dxe5 {[%clk 0:02:44]} 8. Qxd8+ {[%clk 0:02:54]}  Nxd8 {[%clk 0:02:41]} 9. Nb5 {[%clk 0:02:53]}  e4 {[%clk 0:02:12]} 10. Ne5 {[%clk 0:02:35]}  Ne6 {[%clk 0:02:12]} 11. Bxe6 {[%clk 0:02:34]}  Bxe6 {[%clk 0:02:11]} 12. Nc7+ {[%clk 0:02:34]}  Kd8 {[%clk 0:02:11]} 13. Nxa8 {[%clk 0:02:32]}  Bd5 {[%clk 0:02:01]} 14. Be3 {[%clk 0:02:20]}  b6 {[%clk 0:01:52]} 15. Nxb6 {[%clk 0:02:16]}  axb6 {[%clk 0:01:51]} 16. Bxb6+ {[%clk 0:02:16]}  Kc8 {[%clk 0:01:49]} 17. O-O {[%clk 0:02:13]}  Kb7 {[%clk 0:01:49]} 18. Bd4 {[%clk 0:02:12]}  Ne8 {[%clk 0:01:41]} 19. Ng4 {[%clk 0:02:04]}  f6 {[%clk 0:01:39]} 20. Ne3 {[%clk 0:02:03]}  Bf7 {[%clk 0:01:38]} 21. b3 {[%clk 0:01:56]}  e5 {[%clk 0:01:37]} 22. Bb2 {[%clk 0:01:56]}  Nc7 {[%clk 0:01:28]} 23. Rfd1 {[%clk 0:01:53]}  Be6 {[%clk 0:01:25]} 24. Rac1 {[%clk 0:01:49]}  Be7 {[%clk 0:01:23]} 25. h3 {[%clk 0:01:48]}  Ra8 {[%clk 0:01:23]} 26. Ra1 {[%clk 0:01:37]}  Na6 {[%clk 0:01:17]} 27. Nd5 {[%clk 0:01:27]}  Bd8 {[%clk 0:01:16]} 28. Nc3 {[%clk 0:01:24]}  Nc5 {[%clk 0:01:13]} 29. Nb5 {[%clk 0:00:37]}  Nd3 {[%clk 0:01:05]} 30. Bc3 {[%clk 0:00:36]}  Bb6 {[%clk 0:01:03]} 31. Nd6+ {[%clk 0:00:34]}  Ka6 {[%clk 0:00:55]} 32. Nxe4 {[%clk 0:00:34]}  Nf4 {[%clk 0:00:52]} 33. Bd2 {[%clk 0:00:25]}  Ne2+ {[%clk 0:00:51]} 34. Kf1 {[%clk 0:00:25]}  Nd4 {[%clk 0:00:51]} 35. Be3 {[%clk 0:00:22]}  Bd7 {[%clk 0:00:51]} 36. Bxd4 {[%clk 0:00:21]}  Bb5+ {[%clk 0:00:49]} 37. Kg1 {[%clk 0:00:19]}  Bxd4 {[%clk 0:00:49]} 38. Rac1 {[%clk 0:00:15]}  Kb6 {[%clk 0:00:48]} 39. Nc3 {[%clk 0:00:13]}  Bc6 {[%clk 0:00:47]} 40. Ne2 {[%clk 0:00:12]}  Bb2 {[%clk 0:00:44]} 41. Rc2 {[%clk 0:00:11]}  Ba3 {[%clk 0:00:42]} 42. Nc3 {[%clk 0:00:11]}  Ra5 {[%clk 0:00:39]} 43. f3 {[%clk 0:00:09]}  Bc5+ {[%clk 0:00:38]} 44. Kh2 {[%clk 0:00:09]}  Be3 {[%clk 0:00:36]} 45. Ne4 {[%clk 0:00:08]}  Bd4 {[%clk 0:00:32]} 46. Nc3 {[%clk 0:00:06]}  h5 {[%clk 0:00:30]} 47. Ne2 {[%clk 0:00:00]}  Bc5 {[%clk 0:00:28]} 0-1


[Site "https://www.chess.com"]

[Event "Titled Tuesday Blitz August 1 Late 2023"]
[White "Curtis, John"]
[Black "Ibarra Jerez, Jose Carlos"]
[WhiteFideId "3200256"]
[BlackFideId "2226332"]
[WhiteElo "2088"]
[BlackElo "2879"]
[Result "0-1"]
[Round "3"]
[TimeControl "180+1"]
[Date "2023.08.01"]
[WhiteClock "0:00:00"]
[BlackClock "0:00:16"]
[Board "133"]

1. e4 {[%clk 0:03:00]}  c5 {[%clk 0:02:58]} 2. Nf3 {[%clk 0:02:56]}  Nc6 {[%clk 0:02:57]} 3. Bb5 {[%clk 0:02:53]}  e6 {[%clk 0:02:57]} 4. O-O {[%clk 0:02:52]}  Nge7 {[%clk 0:02:57]} 5. c3 {[%clk 0:02:51]}  a6 {[%clk 0:02:57]} 6. Ba4 {[%clk 0:02:49]}  b5 {[%clk 0:02:57]} 7. Bc2 {[%clk 0:02:49]}  Bb7 {[%clk 0:02:57]} 8. d3 {[%clk 0:02:46]}  Rc8 {[%clk 0:02:56]} 9. Re1 {[%clk 0:02:42]}  Ng6 {[%clk 0:02:56]} 10. Nbd2 {[%clk 0:02:41]}  Be7 {[%clk 0:02:54]} 11. Nf1 {[%clk 0:02:41]}  O-O {[%clk 0:02:52]} 12. a3 {[%clk 0:02:33]}  Qc7 {[%clk 0:02:43]} 13. Ne3 {[%clk 0:02:29]}  h6 {[%clk 0:01:56]} 14. Bd2 {[%clk 0:02:28]}  Nge5 {[%clk 0:01:49]} 15. Nxe5 {[%clk 0:02:26]}  Nxe5 {[%clk 0:01:47]} 16. Rc1 {[%clk 0:02:05]}  Bg5 {[%clk 0:01:43]} 17. Qe2 {[%clk 0:01:53]}  f5 {[%clk 0:01:29]} 18. f3 {[%clk 0:01:22]}  Qd6 {[%clk 0:01:16]} 19. Rcd1 {[%clk 0:01:06]}  Bh4 {[%clk 0:01:15]} 20. Rf1 {[%clk 0:01:05]}  Ng6 {[%clk 0:01:14]} 21. g3 {[%clk 0:00:56]}  Bd8 {[%clk 0:01:14]} 22. Be1 {[%clk 0:00:42]}  f4 {[%clk 0:01:13]} 23. Ng2 {[%clk 0:00:41]}  Bb6 {[%clk 0:01:11]} 24. gxf4 {[%clk 0:00:37]}  Nxf4 {[%clk 0:01:10]} 25. Nxf4 {[%clk 0:00:37]}  Qxf4 {[%clk 0:01:11]} 26. Bg3 {[%clk 0:00:38]}  Qf6 {[%clk 0:01:08]} 27. Kh1 {[%clk 0:00:31]}  b4 {[%clk 0:01:07]} 28. axb4 {[%clk 0:00:29]}  cxb4 {[%clk 0:01:08]} 29. c4 {[%clk 0:00:30]}  Qxb2 {[%clk 0:01:04]} 30. Rb1 {[%clk 0:00:28]}  Qa3 {[%clk 0:00:48]} 31. Bd6 {[%clk 0:00:27]}  Bc5 {[%clk 0:00:49]} 32. Ra1 {[%clk 0:00:26]}  Qc3 {[%clk 0:00:46]} 33. Bg3 {[%clk 0:00:20]}  b3 {[%clk 0:00:42]} 34. Bxb3 {[%clk 0:00:18]}  Qxb3 {[%clk 0:00:41]} 35. Rab1 {[%clk 0:00:18]}  Qa4 {[%clk 0:00:35]} 36. Rxb7 {[%clk 0:00:17]}  Rf7 {[%clk 0:00:35]} 37. Bf2 {[%clk 0:00:15]}  Qc6 {[%clk 0:00:32]} 38. Rfb1 {[%clk 0:00:10]}  Rcf8 {[%clk 0:00:30]} 39. Bxc5 {[%clk 0:00:08]}  Qxc5 {[%clk 0:00:31]} 40. Rb8 {[%clk 0:00:08]}  Kh7 {[%clk 0:00:27]} 41. Rxf8 {[%clk 0:00:08]}  Qxf8 {[%clk 0:00:28]} 42. Rg1 {[%clk 0:00:06]}  Rxf3 {[%clk 0:00:26]} 43. Qg2 {[%clk 0:00:07]}  Qf7 {[%clk 0:00:25]} 44. e5 {[%clk 0:00:07]}  a5 {[%clk 0:00:24]} 45. d4 {[%clk 0:00:06]}  a4 {[%clk 0:00:23]} 46. Qc2+ {[%clk 0:00:05]}  Kh8 {[%clk 0:00:21]} 47. Qxa4 {[%clk 0:00:05]}  Qf4 {[%clk 0:00:16]} 48. Qa8+ {[%clk 0:00:00]}  Kh7 {[%clk 0:00:16]} 0-1


[Site "https://www.chess.com"]